[Event "*** Titled Tuesday Blitz"]
[Site "Chess.com"]
[Date "2021.03.09"]
[Round "9"]
[White "Handszar"]
[Black "shnitez"]
[Result "1/2-1/2"]
[WhiteElo "2385"]
[BlackElo "2501"]
[TimeControl "180+1"]
[EndTime "11:48:31 PST"]
[Termination "Game drawn by repetition"]

1. e4 {[%clk 0:02:42.3]} 1... c5 {[%clk 0:02:58.2]} 2. Nf3 {[%clk 0:02:38.1]}
2... e6 {[%clk 0:02:58.3]} 3. d4 {[%clk 0:02:35.8]} 3... cxd4 {[%clk 0:02:59.2]}
4. Nxd4 {[%clk 0:02:36]} 4... a6 {[%clk 0:02:59.8]} 5. Nc3 {[%clk 0:02:34.2]}
5... b5 {[%clk 0:02:59.6]} 6. Bd3 {[%clk 0:02:30.8]} 6... Qb6 {[%clk 0:02:59.4]}
7. Nf3 {[%clk 0:02:28.7]} 7... Qc7 {[%clk 0:02:59.1]} 8. O-O {[%clk 0:02:24.6]}
8... Bb7 {[%clk 0:02:59.2]} 9. Bd2 {[%clk 0:02:22.2]} 9... Be7 {[%clk
0:02:56.3]} 10. b4 {[%clk 0:02:18.1]} 10... Nf6 {[%clk 0:02:45.4]} 11. a4 {[%clk
0:02:14.8]} 11... Nc6 {[%clk 0:02:09.3]} 12. axb5 {[%clk 0:02:10]} 12... Nxb4
{[%clk 0:02:09.4]} 13. bxa6 {[%clk 0:02:09.5]} 13... Bxa6 {[%clk 0:01:42.7]} 14.
Bxa6 {[%clk 0:02:07]} 14... Rxa6 {[%clk 0:01:24]} 15. Rxa6 {[%clk 0:02:04]}
15... Nxa6 {[%clk 0:01:24.9]} 16. e5 {[%clk 0:02:01.8]} 16... Ng4 {[%clk
0:00:55]} 17. Qa1 {[%clk 0:01:54.5]} 17... Nb8 {[%clk 0:00:39.9]} 18. Nb5 {[%clk
0:01:37.9]} 18... Qc5 {[%clk 0:00:21.7]} 19. h3 {[%clk 0:01:17]} 19... O-O
{[%clk 0:00:17.6]} 20. Qb2 {[%clk 0:01:01.7]} 20... Nh6 {[%clk 0:00:16.2]} 21.
Bxh6 {[%clk 0:00:53.1]} 21... gxh6 {[%clk 0:00:17.1]} 22. Nbd4 {[%clk 0:00:45]}
22... Nc6 {[%clk 0:00:15.8]} 23. Nxc6 {[%clk 0:00:34.1]} 23... Qxc6 {[%clk
0:00:16.7]} 24. Qc1 {[%clk 0:00:33.1]} 24... Rc8 {[%clk 0:00:15]} 25. Qxh6
{[%clk 0:00:31.9]} 25... Qxc2 {[%clk 0:00:15.2]} 26. Qh5 {[%clk 0:00:20.1]}
26... Qg6 {[%clk 0:00:14.4]} 27. Qxg6+ {[%clk 0:00:17.8]} 27... hxg6 {[%clk
0:00:15]} 28. Rd1 {[%clk 0:00:18.3]} 28... Rd8 {[%clk 0:00:11.1]} 29. h4 {[%clk
0:00:16.7]} 29... d6 {[%clk 0:00:09.9]} 30. exd6 {[%clk 0:00:15.9]} 30... Rxd6
{[%clk 0:00:10.8]} 31. Rxd6 {[%clk 0:00:15]} 31... Bxd6 {[%clk 0:00:11.7]} 32.
g3 {[%clk 0:00:15.7]} 32... Kg7 {[%clk 0:00:11.9]} 33. Kg2 {[%clk 0:00:16.6]}
33... Be7 {[%clk 0:00:12.1]} 34. Ne5 {[%clk 0:00:15.3]} 34... Bd6 {[%clk
0:00:11.9]} 35. f4 {[%clk 0:00:14.3]} 35... Bc7 {[%clk 0:00:09.1]} 36. Kf3
{[%clk 0:00:14]} 36... f6 {[%clk 0:00:09.2]} 37. Nd3 {[%clk 0:00:12.9]} 37... f5
{[%clk 0:00:08.5]} 38. Nc5 {[%clk 0:00:10.3]} 38... Kf6 {[%clk 0:00:07.1]} 39.
Nd3 {[%clk 0:00:10.1]} 39... Bd6 {[%clk 0:00:07.1]} 40. g4 {[%clk 0:00:10.3]}
40... fxg4+ {[%clk 0:00:06.4]} 41. Kxg4 {[%clk 0:00:11.2]} 41... Bc7 {[%clk
0:00:05.9]} 42. Nf2 {[%clk 0:00:11]} 42... Bd8 {[%clk 0:00:04.1]} 43. Ne4+
{[%clk 0:00:11.9]} 43... Kg7 {[%clk 0:00:04.4]} 44. Ng5 {[%clk 0:00:11.4]} 44...
Bxg5 {[%clk 0:00:03.8]} 45. hxg5 {[%clk 0:00:10.5]} 45... Kf7 {[%clk 0:00:03.9]}
46. Kf3 {[%clk 0:00:10.5]} 46... Ke7 {[%clk 0:00:04.7]} 47. Ke4 {[%clk
0:00:10.8]} 47... Kd7 {[%clk 0:00:04.6]} 48. Ke5 {[%clk 0:00:10.8]} 48... Ke7
{[%clk 0:00:05]} 49. Kd4 {[%clk 0:00:10.3]} 49... Kd6 {[%clk 0:00:05.5]} 50. Ke4
{[%clk 0:00:10.6]} 50... Kd7 {[%clk 0:00:05.9]} 51. Kd4 {[%clk 0:00:09.5]} 51...
Kd6 {[%clk 0:00:06.1]} 52. Ke4 {[%clk 0:00:09.7]} 52... Kd7 {[%clk 0:00:06.7]}
1/2-1/2

[Event "*** Titled Tuesday Blitz"]
[Site "Chess.com"]
[Date "2021.03.09"]
[Round "9"]
[White "jposthuma"]
[Black "kirillshevchenko"]
[Result "1-0"]
[WhiteElo "2683"]
[BlackElo "2824"]
[TimeControl "180+1"]
[EndTime "11:48:32 PST"]
[Termination "jposthuma won by resignation"]

1. d4 {[%clk 0:03:00.9]} 1... Nf6 {[%clk 0:02:59.9]} 2. c4 {[%clk 0:03:01.2]}
2... g6 {[%clk 0:03:00.3]} 3. Nc3 {[%clk 0:03:01.3]} 3... Bg7 {[%clk 0:03:00.8]}
4. e4 {[%clk 0:03:01.8]} 4... d6 {[%clk 0:03:01.1]} 5. f3 {[%clk 0:03:02]} 5...
O-O {[%clk 0:03:00.4]} 6. Be3 {[%clk 0:03:02.6]} 6... a6 {[%clk 0:02:59.4]} 7.
Qd2 {[%clk 0:03:00.2]} 7... Nc6 {[%clk 0:02:56.7]} 8. Nge2 {[%clk 0:02:57.9]}
8... Bd7 {[%clk 0:02:55.9]} 9. Nc1 {[%clk 0:02:17.9]} 9... e5 {[%clk 0:02:14.6]}
10. d5 {[%clk 0:02:15]} 10... Ne7 {[%clk 0:02:14.8]} 11. Bd3 {[%clk 0:02:06.3]}
11... Nh5 {[%clk 0:02:13.8]} 12. c5 {[%clk 0:01:46.3]} 12... f5 {[%clk
0:02:13.1]} 13. Nb3 {[%clk 0:01:32.6]} 13... Nf4 {[%clk 0:02:11.2]} 14. O-O-O
{[%clk 0:01:22.3]} 14... a5 {[%clk 0:02:01.8]} 15. cxd6 {[%clk 0:01:13.9]} 15...
cxd6 {[%clk 0:02:01]} 16. a4 {[%clk 0:01:12.8]} 16... Nxd3+ {[%clk 0:01:24]} 17.
Qxd3 {[%clk 0:01:13.7]} 17... Qe8 {[%clk 0:01:24.2]} 18. Nb5 {[%clk 0:01:01.9]}
18... Bxb5 {[%clk 0:01:10.9]} 19. Qxb5 {[%clk 0:01:01.8]} 19... Qxb5 {[%clk
0:01:11.4]} 20. axb5 {[%clk 0:01:02.7]} 20... a4 {[%clk 0:01:12.2]} 21. Nd2
{[%clk 0:00:58]} 21... fxe4 {[%clk 0:00:31.7]} 22. fxe4 {[%clk 0:00:57]} 22...
a3 {[%clk 0:00:30]} 23. Nc4 {[%clk 0:00:48]} 23... a2 {[%clk 0:00:12]} 24. Kd2
{[%clk 0:00:43.5]} 24... Nc8 {[%clk 0:00:10.4]} 25. Ra1 {[%clk 0:00:38.6]} 25...
Bf6 {[%clk 0:00:08]} 26. Kc2 {[%clk 0:00:28]} 26... Bd8 {[%clk 0:00:07.5]} 27.
Kb3 {[%clk 0:00:27]} 27... b6 {[%clk 0:00:01.9]} 28. Rxa2 {[%clk 0:00:26.1]}
28... Rxa2 {[%clk 0:00:02.8]} 29. Kxa2 {[%clk 0:00:27]} 29... Rf7 {[%clk
0:00:02.4]} 30. Kb3 {[%clk 0:00:26.7]} 30... Ra7 {[%clk 0:00:02.6]} 31. Rc1
{[%clk 0:00:23.1]} 31... Bc7 {[%clk 0:00:02.5]} 32. Na3 {[%clk 0:00:15.2]} 32...
Kf7 {[%clk 0:00:02.5]} 33. Rc6 {[%clk 0:00:15.4]} 33... Ke7 {[%clk 0:00:02.6]}
34. Nc4 {[%clk 0:00:15.8]} 34... Rb7 {[%clk 0:00:02.4]} 35. Kc2 {[%clk
0:00:12.3]} 35... Kd7 {[%clk 0:00:02.7]} 36. Kd3 {[%clk 0:00:12.6]} 36... Rb8
{[%clk 0:00:03.2]} 37. Na3 {[%clk 0:00:11.7]} 37... Ne7 {[%clk 0:00:03.1]} 38.
Rc2 {[%clk 0:00:10.6]} 38... Ra8 {[%clk 0:00:03.6]} 39. Rf2 {[%clk 0:00:10.8]}
39... Ke8 {[%clk 0:00:02.4]} 40. Rf6 {[%clk 0:00:11]} 40... Ra4 {[%clk
0:00:01.9]} 41. Nc4 {[%clk 0:00:10.7]} 41... Nc8 {[%clk 0:00:02.4]} 42. Bh6
{[%clk 0:00:08.5]} 42... Rb4 {[%clk 0:00:02.1]} 43. Rf8+ {[%clk 0:00:07.9]}
43... Kd7 {[%clk 0:00:02.7]} 44. Rf7+ {[%clk 0:00:07.9]} 44... Ne7 {[%clk
0:00:03.3]} 45. Bg5 {[%clk 0:00:07.5]} 45... Bd8 {[%clk 0:00:03.9]} 46. Nxb6+
{[%clk 0:00:06.1]} 46... Ke8 {[%clk 0:00:04.4]} 47. Rxh7 {[%clk 0:00:05]} 47...
Rxb5 {[%clk 0:00:04.9]} 48. Bxe7 {[%clk 0:00:04.5]} 48... Bxe7 {[%clk 0:00:05]}
49. Nc8 {[%clk 0:00:04.7]} 49... Bg5 {[%clk 0:00:04.7]} 50. Nxd6+ {[%clk
0:00:04.6]} 1-0

[Event "*** Titled Tuesday Blitz"]
[Site "Chess.com"]
[Date "2021.03.09"]
[Round "9"]
[White "starplatinum2030"]
[Black "Anton_Demchenko"]
[Result "0-1"]
[WhiteElo "2228"]
[BlackElo "2840"]
[TimeControl "180+1"]
[EndTime "11:48:33 PST"]
[Termination "Anton_Demchenko won by resignation"]

1. e4 {[%clk 0:03:00.9]} 1... e5 {[%clk 0:02:57.7]} 2. Nf3 {[%clk 0:03:00.8]}
2... Nc6 {[%clk 0:02:58.6]} 3. Bb5 {[%clk 0:03:00.4]} 3... a6 {[%clk 0:02:59.2]}
4. Ba4 {[%clk 0:03:00.6]} 4... d6 {[%clk 0:02:59.5]} 5. O-O {[%clk 0:02:59.8]}
5... Nf6 {[%clk 0:02:57.4]} 6. Re1 {[%clk 0:02:57.8]} 6... Be7 {[%clk 0:02:55]}
7. c3 {[%clk 0:02:57.7]} 7... O-O {[%clk 0:02:52.9]} 8. h3 {[%clk 0:02:57.9]}
8... Bd7 {[%clk 0:02:44.9]} 9. d4 {[%clk 0:02:53.7]} 9... Re8 {[%clk 0:02:43.8]}
10. Nbd2 {[%clk 0:02:51.5]} 10... Bf8 {[%clk 0:02:44]} 11. Bc2 {[%clk
0:02:50.5]} 11... g6 {[%clk 0:02:43.3]} 12. Nf1 {[%clk 0:02:49.3]} 12... Bg7
{[%clk 0:02:43.9]} 13. Ng3 {[%clk 0:02:42.8]} 13... a5 {[%clk 0:02:44.5]} 14. a4
{[%clk 0:02:40]} 14... exd4 {[%clk 0:02:44.2]} 15. cxd4 {[%clk 0:02:38.8]} 15...
Nb4 {[%clk 0:02:44.5]} 16. Bb3 {[%clk 0:02:38.2]} 16... Be6 {[%clk 0:02:20.7]}
17. Bxe6 {[%clk 0:02:26]} 17... fxe6 {[%clk 0:02:13.8]} 18. Be3 {[%clk
0:02:18.2]} 18... Qd7 {[%clk 0:02:10.1]} 19. Qb3 {[%clk 0:02:15.2]} 19... Kh8
{[%clk 0:02:06.4]} 20. Rac1 {[%clk 0:02:13.7]} 20... Rac8 {[%clk 0:01:48]} 21.
Red1 {[%clk 0:02:12.4]} 21... Qe7 {[%clk 0:01:44.1]} 22. Bg5 {[%clk 0:02:06.8]}
22... Qf8 {[%clk 0:01:43.2]} 23. Qe3 {[%clk 0:01:53.8]} 23... Nd7 {[%clk
0:01:38.9]} 24. Qb3 {[%clk 0:01:47.1]} 24... c5 {[%clk 0:01:33.9]} 25. Be3
{[%clk 0:01:45.9]} 25... b6 {[%clk 0:01:33.1]} 26. dxc5 {[%clk 0:01:16.3]} 26...
Nxc5 {[%clk 0:01:29.2]} 27. Bxc5 {[%clk 0:01:15.4]} 27... bxc5 {[%clk
0:01:29.7]} 28. Nd2 {[%clk 0:01:03.6]} 28... d5 {[%clk 0:01:27.5]} 29. exd5
{[%clk 0:00:59.9]} 29... exd5 {[%clk 0:01:28.4]} 30. Nf3 {[%clk 0:01:00.3]}
30... c4 {[%clk 0:01:26.6]} 31. Qa3 {[%clk 0:00:57.3]} 31... d4 {[%clk
0:01:26.3]} 32. Nxd4 {[%clk 0:00:47]} 32... Nd3 {[%clk 0:01:22.5]} 33. Qxf8+
{[%clk 0:00:45.8]} 33... Rxf8 {[%clk 0:01:22.6]} 34. Ne6 {[%clk 0:00:41.2]}
34... Nxc1 {[%clk 0:01:19]} 35. Nxf8 {[%clk 0:00:31.7]} 35... Nd3 {[%clk
0:01:19.6]} 36. Ne6 {[%clk 0:00:29.6]} 36... Nxb2 {[%clk 0:01:18.2]} 37. Rc1
{[%clk 0:00:29.1]} 37... Nd3 {[%clk 0:01:15.5]} 38. Rc2 {[%clk 0:00:28.5]} 38...
Nb4 {[%clk 0:01:15.5]} 39. Rc1 {[%clk 0:00:27.2]} 39... Bb2 {[%clk 0:01:15.8]}
40. Re1 {[%clk 0:00:23.2]} 40... c3 {[%clk 0:01:16.2]} 41. Nd4 {[%clk
0:00:22.8]} 41... c2 {[%clk 0:01:16.7]} 42. Nxc2 {[%clk 0:00:23.4]} 42... Nxc2
{[%clk 0:01:16.8]} 43. Re2 {[%clk 0:00:17.5]} 43... Bg7 {[%clk 0:01:08.1]} 44.
Ne4 {[%clk 0:00:16.6]} 44... Nd4 {[%clk 0:01:03]} 45. Rd2 {[%clk 0:00:14.6]}
45... h6 {[%clk 0:01:00.9]} 46. f3 {[%clk 0:00:14.5]} 46... Rc4 {[%clk
0:00:59.1]} 47. Ra2 {[%clk 0:00:14.9]} 47... Nf5 {[%clk 0:00:54]} 48. Kf2 {[%clk
0:00:14.9]} 48... Be5 {[%clk 0:00:47.9]} 49. g4 {[%clk 0:00:13.9]} 49... Nd6
{[%clk 0:00:47.6]} 50. Nxd6 {[%clk 0:00:12.2]} 50... Bxd6 {[%clk 0:00:47.5]} 51.
Ke3 {[%clk 0:00:13.1]} 51... Bf4+ {[%clk 0:00:45.1]} 52. Kd3 {[%clk 0:00:13.1]}
52... Rb4 {[%clk 0:00:45.6]} 53. Kc3 {[%clk 0:00:13.3]} 53... Kg7 {[%clk
0:00:44.3]} 54. Re2 {[%clk 0:00:12.8]} 54... Rxa4 {[%clk 0:00:43.1]} 55. Re7+
{[%clk 0:00:13.4]} 55... Kf6 {[%clk 0:00:43.3]} 56. Ra7 {[%clk 0:00:14.3]} 56...
Ra3+ {[%clk 0:00:37.5]} 57. Kc4 {[%clk 0:00:14.6]} 57... Kg5 {[%clk 0:00:33.9]}
58. Rg7 {[%clk 0:00:10.5]} 58... Rxf3 {[%clk 0:00:32.3]} 0-1

[Event "*** Titled Tuesday Blitz"]
[Site "Chess.com"]
[Date "2021.03.09"]
[Round "9"]
[White "GMJustin"]
[Black "KonstantinB_1983"]
[Result "1-0"]
[WhiteElo "2283"]
[BlackElo "2466"]
[TimeControl "180+1"]
[EndTime "11:48:33 PST"]
[Termination "GMJustin won by checkmate"]

1. d4 {[%clk 0:02:54.7]} 1... Nf6 {[%clk 0:02:58.8]} 2. c4 {[%clk 0:02:46.4]}
2... d6 {[%clk 0:02:57.4]} 3. Nc3 {[%clk 0:02:41.1]} 3... c6 {[%clk 0:02:57.4]}
4. e4 {[%clk 0:02:37.8]} 4... Nbd7 {[%clk 0:02:57.5]} 5. g4 {[%clk 0:02:11]}
5... h6 {[%clk 0:02:54.6]} 6. h3 {[%clk 0:02:09.2]} 6... e5 {[%clk 0:02:52.8]}
7. Nge2 {[%clk 0:02:07.5]} 7... Be7 {[%clk 0:02:51.3]} 8. Bg2 {[%clk 0:02:06.8]}
8... O-O {[%clk 0:02:48.2]} 9. O-O {[%clk 0:02:05.9]} 9... Re8 {[%clk
0:02:47.6]} 10. Ng3 {[%clk 0:01:54.9]} 10... Bf8 {[%clk 0:02:46.6]} 11. f4
{[%clk 0:01:44.5]} 11... exd4 {[%clk 0:02:43.8]} 12. Qxd4 {[%clk 0:01:44.2]}
12... Qb6 {[%clk 0:02:44.2]} 13. Be3 {[%clk 0:01:40.8]} 13... Qxd4 {[%clk
0:02:31.3]} 14. Bxd4 {[%clk 0:01:41.5]} 14... Nh7 {[%clk 0:02:31.5]} 15. Rad1
{[%clk 0:01:29.2]} 15... g5 {[%clk 0:02:28.7]} 16. Nf5 {[%clk 0:01:02]} 16...
gxf4 {[%clk 0:02:25.5]} 17. Rxf4 {[%clk 0:01:01.8]} 17... Ne5 {[%clk 0:02:22.6]}
18. Rdf1 {[%clk 0:00:53]} 18... Nxc4 {[%clk 0:02:16.1]} 19. Ng3 {[%clk
0:00:38.6]} 19... Be6 {[%clk 0:02:12]} 20. b3 {[%clk 0:00:35.9]} 20... Ne5
{[%clk 0:02:09]} 21. Nf5 {[%clk 0:00:27.8]} 21... a6 {[%clk 0:02:00.7]} 22. Ne2
{[%clk 0:00:24.5]} 22... Rad8 {[%clk 0:01:36]} 23. Neg3 {[%clk 0:00:22.4]} 23...
Bc8 {[%clk 0:01:31.6]} 24. Bc3 {[%clk 0:00:18.9]} 24... Ng6 {[%clk 0:01:16.2]}
25. R4f2 {[%clk 0:00:18.4]} 25... d5 {[%clk 0:01:10]} 26. exd5 {[%clk
0:00:15.3]} 26... cxd5 {[%clk 0:01:07.2]} 27. Bd4 {[%clk 0:00:14]} 27... Ne5
{[%clk 0:01:03]} 28. Nh5 {[%clk 0:00:10.7]} 28... Nc6 {[%clk 0:00:59.6]} 29. Bb6
{[%clk 0:00:08.7]} 29... Rd7 {[%clk 0:00:58.1]} 30. Rd2 {[%clk 0:00:08.6]} 30...
Re5 {[%clk 0:00:48.6]} 31. Kh1 {[%clk 0:00:07.6]} 31... Ne7 {[%clk 0:00:41.6]}
32. Bd4 {[%clk 0:00:03.4]} 32... Re6 {[%clk 0:00:40.5]} 33. Nxe7+ {[%clk
0:00:02.7]} 33... Bxe7 {[%clk 0:00:39.5]} 34. Rdf2 {[%clk 0:00:01.9]} 34... Bh4
{[%clk 0:00:35]} 35. Rf5 {[%clk 0:00:01.9]} 35... Red6 {[%clk 0:00:30.2]} 36.
Bc5 {[%clk 0:00:01.8]} 36... Rc6 {[%clk 0:00:28.8]} 37. Bxd5 {[%clk 0:00:01.8]}
37... Rg6 {[%clk 0:00:23.9]} 38. Bxf7+ {[%clk 0:00:01.7]} 38... Kh8 {[%clk
0:00:23.3]} 39. Bxg6 {[%clk 0:00:01.5]} 39... Rd8 {[%clk 0:00:21.5]} 40. Bxh7
{[%clk 0:00:01]} 40... Kxh7 {[%clk 0:00:20.6]} 41. Rf7+ {[%clk 0:00:01.6]} 41...
Kg8 {[%clk 0:00:19.6]} 42. Rf8+ {[%clk 0:00:02.2]} 42... Rxf8 {[%clk 0:00:18.4]}
43. Rxf8+ {[%clk 0:00:02.8]} 43... Kh7 {[%clk 0:00:19.2]} 44. Rxc8 {[%clk
0:00:03.4]} 44... Kg6 {[%clk 0:00:19.3]} 45. Rc7 {[%clk 0:00:03.9]} 45... Be7
{[%clk 0:00:19.6]} 46. Rxe7 {[%clk 0:00:04]} 46... Kg5 {[%clk 0:00:20.5]} 47.
Be3+ {[%clk 0:00:03.6]} 47... Kh4 {[%clk 0:00:20.2]} 48. Kg2 {[%clk 0:00:04.2]}
48... b5 {[%clk 0:00:18.8]} 49. Rg7 {[%clk 0:00:04.5]} 49... b4 {[%clk 0:00:18]}
50. Bf2# {[%clk 0:00:05]} 1-0

[Event "*** Titled Tuesday Blitz"]
[Site "Chess.com"]
[Date "2021.03.09"]
[Round "9"]
[White "iturrizaga"]
[Black "Blazinq"]
[Result "0-1"]
[WhiteElo "2815"]
[BlackElo "2654"]
[TimeControl "180+1"]
[EndTime "11:48:36 PST"]
[Termination "Blazinq won by resignation"]

1. c4 {[%clk 0:03:00.9]} 1... e5 {[%clk 0:03:00.4]} 2. g3 {[%clk 0:03:01.5]}
2... Nf6 {[%clk 0:03:00.1]} 3. Bg2 {[%clk 0:03:02.4]} 3... d5 {[%clk 0:03:00.3]}
4. cxd5 {[%clk 0:03:03.3]} 4... Nxd5 {[%clk 0:03:01.1]} 5. Nf3 {[%clk
0:03:04.2]} 5... Nc6 {[%clk 0:03:00.3]} 6. O-O {[%clk 0:03:04.7]} 6... Nb6
{[%clk 0:03:00.2]} 7. b3 {[%clk 0:03:04.4]} 7... Be7 {[%clk 0:02:57.3]} 8. Bb2
{[%clk 0:03:03.1]} 8... Bf6 {[%clk 0:02:29.2]} 9. Nc3 {[%clk 0:03:02.8]} 9...
Bf5 {[%clk 0:02:29.3]} 10. Rc1 {[%clk 0:03:01.2]} 10... O-O {[%clk 0:02:26]} 11.
d3 {[%clk 0:03:01.3]} 11... Re8 {[%clk 0:02:25.1]} 12. Nd2 {[%clk 0:03:01.2]}
12... Qd7 {[%clk 0:02:15.5]} 13. Nce4 {[%clk 0:03:01.1]} 13... Be7 {[%clk
0:02:13]} 14. Re1 {[%clk 0:02:55.2]} 14... Rad8 {[%clk 0:02:10.1]} 15. a3 {[%clk
0:02:54.3]} 15... Bh3 {[%clk 0:01:57.6]} 16. Bh1 {[%clk 0:02:54.1]} 16... Nd4
{[%clk 0:01:42.5]} 17. b4 {[%clk 0:02:52.3]} 17... c6 {[%clk 0:01:39.2]} 18. e3
{[%clk 0:02:51.5]} 18... Ne6 {[%clk 0:01:20.3]} 19. Bxe5 {[%clk 0:02:50.8]}
19... Qxd3 {[%clk 0:01:18]} 20. Qh5 {[%clk 0:02:50.9]} 20... Rd5 {[%clk
0:01:05.8]} 21. Nf6+ {[%clk 0:02:04.2]} 21... Bxf6 {[%clk 0:01:02.7]} 22. Be4
{[%clk 0:02:04]} 22... Qxd2 {[%clk 0:00:39.2]} 23. Qxh7+ {[%clk 0:02:03.6]}
23... Kf8 {[%clk 0:00:39.2]} 24. Bxf6 {[%clk 0:02:04.5]} 24... gxf6 {[%clk
0:00:37]} 25. Qxh3 {[%clk 0:01:29.5]} 25... Re5 {[%clk 0:00:25.9]} 26. Qh6+
{[%clk 0:01:27.1]} 26... Ke7 {[%clk 0:00:25.7]} 27. Rcd1 {[%clk 0:01:23.5]}
27... Qc3 {[%clk 0:00:22.8]} 28. Bg2 {[%clk 0:01:21.2]} 28... Rd8 {[%clk
0:00:22]} 29. h4 {[%clk 0:01:18.1]} 29... Rxd1 {[%clk 0:00:19.9]} 30. Rxd1
{[%clk 0:01:19]} 30... Qxa3 {[%clk 0:00:20]} 31. Qh8 {[%clk 0:01:17.7]} 31...
Qxb4 {[%clk 0:00:16.7]} 32. Bh3 {[%clk 0:01:12.5]} 32... Qb3 {[%clk 0:00:14.7]}
33. Ra1 {[%clk 0:01:07.5]} 33... a6 {[%clk 0:00:12.6]} 34. Qh7 {[%clk
0:01:03.1]} 34... Nd5 {[%clk 0:00:12.6]} 35. Rb1 {[%clk 0:01:02.2]} 35... Qc3
{[%clk 0:00:10.1]} 36. Rxb7+ {[%clk 0:01:02.2]} 36... Nec7 {[%clk 0:00:10.4]}
37. Qh8 {[%clk 0:00:54.5]} 37... Qe1+ {[%clk 0:00:09.4]} 38. Kg2 {[%clk
0:00:38.7]} 38... Qe2 {[%clk 0:00:07.8]} 39. Kg1 {[%clk 0:00:30.8]} 39... Qe1+
{[%clk 0:00:08.3]} 40. Bf1 {[%clk 0:00:31.1]} 40... Rf5 {[%clk 0:00:07.8]} 41.
f4 {[%clk 0:00:18.6]} 41... Qxg3+ {[%clk 0:00:08.7]} 42. Bg2 {[%clk 0:00:17.2]}
42... Qxe3+ {[%clk 0:00:08.8]} 43. Kh1 {[%clk 0:00:17.7]} 43... Qe1+ {[%clk
0:00:08.7]} 44. Kh2 {[%clk 0:00:18]} 44... Rxf4 {[%clk 0:00:08.1]} 45. Kh3
{[%clk 0:00:06]} 45... Qe3+ {[%clk 0:00:07.9]} 46. Kh2 {[%clk 0:00:06.4]} 46...
Qe5 {[%clk 0:00:08.5]} 47. Kg1 {[%clk 0:00:05.7]} 47... Rd4 {[%clk 0:00:06.7]}
48. Rb8 {[%clk 0:00:05.7]} 48... Rd1+ {[%clk 0:00:06.5]} 49. Bf1 {[%clk
0:00:06.1]} 49... Qg3+ {[%clk 0:00:06.8]} 0-1

[Event "*** Titled Tuesday Blitz"]
[Site "Chess.com"]
[Date "2021.03.09"]
[Round "9"]
[White "konradrutkowski"]
[Black "Vesper2018"]
[Result "1-0"]
[WhiteElo "2424"]
[BlackElo "2560"]
[TimeControl "180+1"]
[EndTime "11:48:40 PST"]
[Termination "konradrutkowski won on time"]

1. d4 {[%clk 0:01:38.9]} 1... Nf6 {[%clk 0:02:58.4]} 2. Nf3 {[%clk 0:01:39.1]}
2... g6 {[%clk 0:02:58.4]} 3. e3 {[%clk 0:01:39.3]} 3... Bg7 {[%clk 0:02:57.9]}
4. Be2 {[%clk 0:01:40.2]} 4... O-O {[%clk 0:02:57.9]} 5. O-O {[%clk 0:01:40.9]}
5... d6 {[%clk 0:02:57.6]} 6. b4 {[%clk 0:01:41.6]} 6... a5 {[%clk 0:02:51.6]}
7. b5 {[%clk 0:01:41.7]} 7... c6 {[%clk 0:02:45.1]} 8. a4 {[%clk 0:01:41.2]}
8... Nbd7 {[%clk 0:02:34.9]} 9. Bb2 {[%clk 0:01:39.7]} 9... d5 {[%clk
0:02:32.9]} 10. c4 {[%clk 0:01:39.5]} 10... dxc4 {[%clk 0:02:29.6]} 11. Bxc4
{[%clk 0:01:40.4]} 11... Nb6 {[%clk 0:02:30.1]} 12. Be2 {[%clk 0:01:40.2]} 12...
Be6 {[%clk 0:02:26.5]} 13. Nc3 {[%clk 0:01:39.8]} 13... Nc4 {[%clk 0:02:22.2]}
14. Bc1 {[%clk 0:01:39.5]} 14... h6 {[%clk 0:02:18.3]} 15. Qc2 {[%clk
0:01:36.8]} 15... Rc8 {[%clk 0:02:16.6]} 16. Nd2 {[%clk 0:01:30.5]} 16... cxb5
{[%clk 0:02:15.8]} 17. axb5 {[%clk 0:01:29.9]} 17... Nd6 {[%clk 0:02:06.5]} 18.
Qb2 {[%clk 0:01:27.5]} 18... Qc7 {[%clk 0:01:56.9]} 19. Na4 {[%clk 0:01:19.6]}
19... b6 {[%clk 0:01:50.2]} 20. Bf3 {[%clk 0:01:16.8]} 20... Bd5 {[%clk
0:01:48.4]} 21. Ra3 {[%clk 0:01:08.6]} 21... Bxf3 {[%clk 0:01:46.4]} 22. gxf3
{[%clk 0:01:09.5]} 22... Nd5 {[%clk 0:01:39.3]} 23. Ne4 {[%clk 0:01:03.8]} 23...
Nb4 {[%clk 0:01:30.7]} 24. Bd2 {[%clk 0:00:59.5]} 24... Nc4 {[%clk 0:01:30.5]}
25. Qc1 {[%clk 0:00:55.1]} 25... Nxa3 {[%clk 0:01:25.1]} 26. Qxa3 {[%clk
0:00:51.8]} 26... Nd5 {[%clk 0:01:22]} 27. Qb3 {[%clk 0:00:44.1]} 27... Qd7
{[%clk 0:01:21.6]} 28. Ng3 {[%clk 0:00:40.7]} 28... Qd6 {[%clk 0:01:08.2]} 29.
Rd1 {[%clk 0:00:38]} 29... e6 {[%clk 0:00:59]} 30. e4 {[%clk 0:00:37.7]} 30...
Nb4 {[%clk 0:00:58.9]} 31. Be3 {[%clk 0:00:35.1]} 31... Nc2 {[%clk 0:00:50.1]}
32. e5 {[%clk 0:00:27.5]} 32... Qb4 {[%clk 0:00:49.9]} 33. Qxb4 {[%clk
0:00:26.8]} 33... axb4 {[%clk 0:00:50.3]} 34. Nxb6 {[%clk 0:00:26.3]} 34... Rc3
{[%clk 0:00:40.4]} 35. Ne4 {[%clk 0:00:20.2]} 35... Nxe3 {[%clk 0:00:39.7]} 36.
Nxc3 {[%clk 0:00:20.5]} 36... Nxd1 {[%clk 0:00:38]} 37. Nxd1 {[%clk 0:00:21.4]}
37... Rd8 {[%clk 0:00:36.9]} 38. Nb2 {[%clk 0:00:17.5]} 38... Rxd4 {[%clk
0:00:36.7]} 39. N6c4 {[%clk 0:00:16.9]} 39... Bf8 {[%clk 0:00:28.5]} 40. b6
{[%clk 0:00:17.2]} 40... Bc5 {[%clk 0:00:28.4]} 41. b7 {[%clk 0:00:17.3]} 41...
Ba7 {[%clk 0:00:29]} 42. Nd6 {[%clk 0:00:15.5]} 42... Bb8 {[%clk 0:00:26.1]} 43.
Nbc4 {[%clk 0:00:13.5]} 43... b3 {[%clk 0:00:25.7]} 44. Kf1 {[%clk 0:00:12.3]}
44... Kf8 {[%clk 0:00:17.5]} 45. Ke2 {[%clk 0:00:10.9]} 45... Ke7 {[%clk
0:00:17.8]} 46. Ke3 {[%clk 0:00:11.5]} 46... Rd5 {[%clk 0:00:17.1]} 47. f4
{[%clk 0:00:11.1]} 47... Rc5 {[%clk 0:00:14.6]} 48. Kd4 {[%clk 0:00:10.3]} 48...
Rc6 {[%clk 0:00:13.1]} 49. Kc3 {[%clk 0:00:10]} 49... Kd7 {[%clk 0:00:08.8]} 50.
Kxb3 {[%clk 0:00:09.7]} 50... Rc5 {[%clk 0:00:02.7]} 51. Kb4 {[%clk 0:00:08.6]}
51... Rc6 {[%clk 0:00:02.6]} 52. Kb5 {[%clk 0:00:08.2]} 1-0